fUST/lending_fUST_20241102
["ID","MTS","AMOUNT","RATE_DAILY","PERIOD"]
[341164922,1730500239042,-500.0,0.00033274,4]
[341164923,1730500239053,-500.0,0.00033274,3]
[341164924,1730500239062,-500.0,0.00033274,4]
[341164925,1730500239073,-1099.65,0.00033274,4]
[341164926,1730500239082,-500.0,0.00033274,4]
[341164927,1730500239092,-500.0,0.00033275,4]
[341164928,1730500239101,-500.0,0.00033275,4]
[341164929,1730500239111,-500.0,0.00033275,4]
[341164930,1730500239120,-500.0,0.00033275,4]
[341164931,1730500239130,-500.0,0.00033275,4]
[341164932,1730500239140,-500.0,0.00033275,4]
[341164933,1730500239150,-604.4538029,0.00033275,4]
[341164934,1730500239162,-500.0,0.00033275,2]
[341164935,1730500239172,-184.83,0.00033275,4]
[341164936,1730500239186,-500.0,0.00033275,4]
[341164937,1730500239195,-628.14,0.00033275,120]
[341164938,1730500239205,-500.0,0.00033275,4]
[341164939,1730500239214,-500.0,0.00033275,4]
[341164940,1730500239223,-500.0,0.00033275,4]
[341164941,1730500239233,-500.0,0.00033275,4]
[341164942,1730500239243,-500.0,0.00033275,4]
[341164943,1730500239252,-500.0,0.00033275,4]
[341164944,1730500239262,-500.0,0.00033275,4]
[341164945,1730500239271,-185.33488666,0.00033275,4]
[341164946,1730500239280,-500.0,0.00033275,4]
[341164947,1730500239290,-500.0,0.00033275,4]
[341164948,1730500239299,-216.1,0.00033275,4]
[341164949,1730500239309,-500.0,0.00033275,4]
[341164950,1730500239318,-500.0,0.00033275,4]
[341164951,1730500239330,-500.0,0.00033275,4]
[341164952,1730500239339,-500.0,0.00033275,4]
[341164953,1730500239349,-547.7869324,0.00033275,4]
[341164954,1730500239358,-500.0,0.00033275,4]
[341164955,1730500239367,-500.0,0.00033275,4]
[341164956,1730500239376,-500.0,0.00033275,4]
[341164957,1730500239387,-500.0,0.00033275,4]
[341164958,1730500239397,-500.0,0.00033275,4]
[341164959,1730500239406,-500.0,0.00033275,4]
[341164960,1730500239415,-163.78,0.00033283,3]
[341164961,1730500239424,-491.36,0.00033283,3]
[341164962,1730500239433,-270.17,0.00033292,2]
[341164963,1730500239442,-270.17,0.00033292,2]
[341164964,1730500239451,-270.17,0.00033292,2]
[341164965,1730500239460,-270.17,0.00033292,2]
[341164966,1730500239469,-270.17,0.00033292,2]
[341164967,1730500239479,-270.17,0.00033292,2]
[341164968,1730500239488,-270.17,0.00033292,2]
[341164969,1730500239497,-270.17,0.00033292,2]
[341164970,1730500239506,-270.17,0.00033292,2]
[341164971,1730500239516,-270.17,0.00033292,2]
[341164972,1730500239526,-210.0,0.00033292,7]
[341164973,1730500239535,-638.24252612,0.00033292,2]
[341164974,1730500239545,-150.0,0.00033293,2]
[341164975,1730500239554,-762.67405354,0.00033293,2]
[341164976,1730500239563,-18079.44156286,0.00033293,2]
[341164977,1730500239572,-154465.80927228,0.00033293,2]
[341164978,1730500239581,-18178.38622967,0.00033293,2]
[341164979,1730500239590,-100035.17468959,0.00033293,2]
[341164980,1730500239599,-18636.99835011,0.00033293,20]
[341164981,1730500239608,-3000.0,0.00033293,2]
[341164982,1730500239618,-8339.32191257,0.00033293,2]
[341164983,1730500239627,-164.0,0.00033293,2]
[341164984,1730500239637,-1558.74063849,0.000333,2]
[341164985,1730500239646,-348.524105,0.00033396,2]
[341164986,1730500239655,-500.0,0.00033547,4]
[341164987,1730500239665,-5000.0,0.00033547,120]
[341164988,1730500239674,-500.0,0.00033548,4]
[341164989,1730500239683,-200.0,0.00033548,4]
[341164990,1730500239692,-578.82,0.00033548,4]
[341164991,1730500239702,-500.0,0.00033548,4]
[341164992,1730500239711,-500.0,0.00033548,4]
[341164993,1730500239721,-500.0,0.00033548,4]
[341164994,1730500239730,-500.0,0.00033548,4]
[341164995,1730500239739,-500.0,0.00033548,4]
[341164996,1730500239748,-214.00137359,0.00033548,4]
[341164997,1730500239871,-500.0,0.00033548,4]
[341164998,1730500239881,-500.0,0.00033548,4]
[341164999,1730500239890,-500.0,0.00033548,4]
[341165000,1730500239900,-500.0,0.00033548,4]
[341165001,1730500239909,-500.0,0.00033548,4]
[341165002,1730500239919,-500.0,0.00033548,4]
[341165003,1730500239928,-500.0,0.00033548,4]
[341165004,1730500239938,-500.0,0.00033548,4]
[341165005,1730500239948,-500.0,0.00033548,4]
[341165006,1730500239958,-500.0,0.00033548,4]
[341165007,1730500239967,-500.0,0.00033548,4]
[341165008,1730500239977,-500.0,0.00033548,4]
[341165009,1730500239987,-500.0,0.00033548,4]
[341165010,1730500239997,-500.0,0.00033548,4]
[341165011,1730500240007,-500.0,0.00033548,4]
[341165012,1730500240016,-500.0,0.00033548,4]
[341165013,1730500240026,-500.0,0.00033548,4]
[341165014,1730500240035,-500.0,0.00033548,4]
[341165015,1730500240055,-220.28,0.00033548,4]
[341165016,1730500240066,-5000.0,0.00033548,120]
[341165017,1730500240076,-500.0,0.00033548,3]
[341165018,1730500240086,-500.0,0.00033548,4]
[341165019,1730500240096,-1099.65,0.00033548,4]
[341165020,1730500240106,-500.0,0.00033548,4]
[341165021,1730500240116,-500.0,0.00033549,4]
[341165022,1730500240127,-500.0,0.00033549,4]
[341165023,1730500240138,-500.0,0.00033549,4]
[341165024,1730500240147,-500.0,0.00033549,4]
[341165025,1730500240157,-500.0,0.00033549,4]
[341165027,1730500240167,-623.33484917,0.00033549,4]
[341165029,1730500240178,-500.0,0.00033549,4]
[341165030,1730500240188,-187.64,0.00033549,2]
[341165031,1730500240197,-619.55,0.00033549,4]
[341165032,1730500240207,-500.0,0.00033549,4]
[341165033,1730500240218,-500.0,0.00033549,4]
[341165034,1730500240228,-500.0,0.00033549,4]
[341165035,1730500240238,-500.0,0.00033549,4]
[341165036,1730500240248,-410.86,0.00033549,4]
[341165037,1730500240258,-500.0,0.00033549,4]
[341165039,1730500240268,-500.0,0.00033549,4]
[341165040,1730500240279,-500.0,0.00033549,4]
[341165041,1730500240288,-500.0,0.00033549,4]
[341165042,1730500240299,-500.0,0.00033549,4]
[341165043,1730500240309,-500.0,0.00033549,4]
[341165044,1730500240319,-500.0,0.00033549,4]
[341165045,1730500240332,-500.0,0.00033549,4]
[341165046,1730500240342,-500.0,0.00033549,4]
[341165047,1730500240352,-500.0,0.00033549,4]
[341165048,1730500240363,-500.0,0.00033549,4]
[341165049,1730500240373,-500.0,0.00033821,4]
[341165050,1730500240384,-5000.0,0.00033821,120]
[341165051,1730500240394,-500.0,0.00033822,4]
[341165052,1730500240406,-500.0,0.00033822,4]
[341165053,1730500240415,-399.78,0.00033822,4]
[341165054,1730500240425,-500.0,0.00033822,4]
[341165055,1730500240434,-500.0,0.00033822,4]
[341165056,1730500240444,-500.0,0.00033822,4]
[341165057,1730500240454,-500.0,0.00033822,4]
[341165058,1730500240463,-500.0,0.00033822,4]
[341165059,1730500240473,-500.0,0.00033822,4]
[341165061,1730500240484,-500.0,0.00033822,4]
[341165062,1730500240494,-499.74,0.00033822,4]
[341165063,1730500240503,-500.0,0.00033822,4]
[341165064,1730500240513,-500.0,0.00033822,4]
[341165065,1730500240522,-500.0,0.00033822,4]
[341165066,1730500240533,-500.0,0.00033822,4]
[341165067,1730500240543,-500.0,0.00033822,4]
[341165068,1730500240553,-500.0,0.00033822,4]
[341165069,1730500240563,-500.0,0.00033822,4]
[341165070,1730500240572,-500.0,0.00033822,4]
[341165071,1730500240582,-5000.0,0.00033822,120]
[341165072,1730500240591,-500.0,0.00033822,3]
[341165073,1730500240601,-1099.65,0.00033822,4]
[341165074,1730500240611,-500.0,0.00033822,4]
[341165075,1730500240621,-500.0,0.00033823,4]
[341165076,1730500240631,-500.0,0.00033823,4]
[341165077,1730500240640,-500.0,0.00033823,4]
[341165078,1730500240650,-500.0,0.00033823,4]
[341165079,1730500240660,-500.0,0.00033823,4]
[341165080,1730500240669,-500.0,0.00033823,4]
[341165081,1730500240680,-500.0,0.00033823,4]
[341165082,1730500240690,-500.0,0.00033823,4]
[341165083,1730500240701,-500.0,0.00033823,4]
[341165084,1730500240711,-500.0,0.00033823,4]
[341165085,1730500240721,-500.0,0.00033823,4]
[341165086,1730500240731,-500.0,0.00033823,4]
[341165087,1730500240742,-500.0,0.00033823,4]
[341165088,1730500240753,-379.41,0.00033823,4]
[341165089,1730500240764,-500.0,0.00033823,4]
[341165090,1730500240774,-500.0,0.00033823,4]
[341165091,1730500240785,-500.0,0.00033823,4]
[341165092,1730500240796,-500.0,0.00033823,4]
[341165093,1730500240807,-500.0,0.00033823,4]
[341165094,1730500240818,-500.0,0.00033823,4]
[341165095,1730500240831,-500.0,0.00033823,4]
[341165096,1730500240841,-500.0,0.00034095,4]
[341165097,1730500240853,-205.88233914,0.00034096,4]
[341165098,1730500240864,-633.14,0.00034096,4]
[341165099,1730500240875,-617.68775396,0.00034096,4]
[341165100,1730500240887,-500.0,0.00034096,4]
[341165101,1730500240897,-561.90028911,0.00034096,4]
[341165102,1730500240908,-500.0,0.00034096,4]
[341165103,1730500240919,-500.0,0.00034096,4]
[341165104,1730500240930,-356.9198456,0.00034096,4]
[341165105,1730500240940,-481.84,0.00034096,4]
[341165106,1730500240952,-500.0,0.00034096,4]
[341165107,1730500240964,-500.0,0.00034096,4]
[341165108,1730500240976,-500.0,0.00034096,4]
[341165109,1730500240986,-500.0,0.00034096,4]
[341165110,1730500240996,-500.0,0.00034096,4]
[341165111,1730500241006,-500.0,0.00034096,4]
[341165112,1730500241016,-500.0,0.00034096,4]
[341165113,1730500241026,-2340.14344314,0.00034096,120]
[341165114,1730500241036,-500.0,0.00034096,3]
[341165115,1730500241045,-1099.65,0.00034096,4]
[341165116,1730500241054,-500.0,0.00034096,4]
[341165117,1730500241065,-319.00687247,0.00034097,4]
[341165118,1730500241075,-633.12836927,0.00034097,4]
[341165119,1730500241086,-500.0,0.00034097,4]
[341165120,1730500241096,-500.0,0.00034097,4]
[341165121,1730500241107,-390.47,0.00034097,4]
[341165122,1730500241119,-500.0,0.00034097,4]
[341165123,1730500241129,-500.0,0.00034097,4]
[341165124,1730500241140,-500.0,0.00034097,4]
[341165125,1730500241150,-500.0,0.00034097,4]
[341165126,1730500241161,-500.0,0.00034097,4]
[341165127,1730500241173,-500.0,0.00034097,4]
[341165128,1730500241185,-500.0,0.00034097,4]
[341165129,1730500241196,-500.0,0.00034097,4]
[341165130,1730500241206,-500.0,0.00034097,4]
[341165131,1730500241216,-500.0,0.00034097,4]
[341165132,1730500241226,-433.26,0.00034097,4]
[341165133,1730500241236,-500.0,0.00034097,4]
[341165134,1730500241249,-500.0,0.00034097,4]
[341165135,1730500241261,-269.44,0.00034097,4]
[341165136,1730500241272,-500.0,0.00034097,4]
[341165137,1730500241282,-226.976004,0.00034102,2]
[341165138,1730500241293,-500.0,0.00034256,5]
[341165139,1730500241303,-500.99067417,0.00034324,2]
[341165140,1730500241313,-500.0,0.00034369,4]
[341165141,1730500241325,-500.0,0.0003437,4]
[341165142,1730500241338,-487.69726029,0.0003437,4]
[341165143,1730500241347,-500.0,0.0003437,4]
[341165144,1730500241357,-500.0,0.0003437,4]
[341165145,1730500241367,-500.0,0.0003437,4]
[341165146,1730500241377,-645.69,0.0003437,4]
[341165147,1730500241387,-500.0,0.0003437,4]
[341165148,1730500241397,-500.0,0.0003437,4]
[341165149,1730500241406,-500.0,0.0003437,4]
[341165150,1730500241416,-500.0,0.0003437,4]
[341165151,1730500241426,-500.0,0.0003437,3]
[341165152,1730500241436,-1099.65,0.0003437,4]
[341165153,1730500241446,-500.0,0.0003437,4]
[341165154,1730500241456,-500.0,0.00034371,4]
[341165155,1730500241466,-355.76,0.00034371,4]
[341165156,1730500241475,-500.0,0.00034371,4]
[341165157,1730500241485,-552.05,0.00034371,4]
[341165158,1730500241495,-179.6,0.00034371,4]
[341165159,1730500241504,-550.18,0.00034371,4]
[341165160,1730500241514,-500.0,0.00034371,4]
[341165161,1730500241526,-500.0,0.00034371,4]
[341165162,1730500241536,-500.0,0.00034371,4]
[341165163,1730500241546,-500.0,0.00034371,4]
[341165164,1730500241555,-500.0,0.00034371,4]
[341165165,1730500241565,-500.0,0.00034371,4]
[341165166,1730500241575,-500.0,0.00034371,4]
[341165167,1730500241584,-245.698046,0.00034371,4]
[341165168,1730500241593,-500.0,0.00034371,4]
[341165169,1730500241603,-7404.54665293,0.0003445,2]
[341165170,1730500241612,-150.01,0.0003445,2]
[341165171,1730500241622,-150.0,0.00034451,2]
[341165172,1730500241633,-300.0,0.000345,10]
[341165173,1730500241643,-162.235696,0.00034528,2]
[341165174,1730500241652,-226.976004,0.00034528,2]
[341165175,1730500241662,-1256.70587314,0.0003455,2]
[341165176,1730500241671,-528.0,0.00034608,2]
[341165177,1730500241681,-746.489,0.00034608,2]
[341165178,1730500241691,-2394.0,0.00034608,2]
[341165179,1730500241700,-150.0,0.00034608,2]
[341165180,1730500241709,-500.0,0.00034643,4]
[341165181,1730500241719,-597.00736723,0.00034644,4]
[341165182,1730500241729,-500.0,0.00034644,4]
[341165183,1730500241739,-500.0,0.00034644,4]
[341165184,1730500241748,-500.0,0.00034644,4]
[341165185,1730500241758,-500.0,0.00034644,4]
[341165186,1730500241768,-500.0,0.00034644,4]
[341165187,1730500241779,-500.0,0.00034644,4]
[341165188,1730500241789,-500.0,0.00034644,4]
[341165189,1730500241799,-500.0,0.00034644,3]
[341165190,1730500241809,-1099.65,0.00034644,4]
[341165191,1730500241819,-500.0,0.00034644,4]
[341165192,1730500241829,-500.0,0.00034645,4]
[341165193,1730500241839,-500.0,0.00034645,4]
[341165194,1730500241848,-378.32969482,0.00034645,4]
[341165195,1730500241858,-500.0,0.00034645,4]
[341165196,1730500241868,-500.0,0.00034645,4]
[341165197,1730500241878,-500.0,0.00034645,4]
[341165198,1730500241894,-500.0,0.00034645,4]
[341165199,1730500241904,-500.0,0.00034645,4]
[341165200,1730500241914,-500.0,0.00034645,4]
[341165201,1730500241924,-500.0,0.00034645,4]
[341165202,1730500241935,-54430.30164479,0.0003465,2]
[341165203,1730500241944,-1000.0,0.0003465,2]
[341165204,1730500241954,-571.46,0.0003465,2]
[341165205,1730500241966,-327.56,0.00034653,3]
[341165206,1730500241975,-300.0,0.000347,7]
[341165207,1730500241986,-25000.0,0.0003488,7]
[341165208,1730500241996,-150.112233,0.000349,12]
[341165209,1730500242005,-150.112233,0.000349,14]
[341165210,1730500242015,-150.112233,0.000349,17]
[341165211,1730500242024,-150.112233,0.000349,18]
[341165212,1730500242034,-500.0,0.00034917,4]
[341165213,1730500242044,-500.0,0.00034918,4]
[341165214,1730500242054,-500.0,0.00034918,4]
[341165215,1730500242065,-500.0,0.00034918,4]
[341165216,1730500242076,-500.0,0.00034918,4]
[341165217,1730500242087,-500.0,0.00034918,4]
[341165218,1730500242098,-500.0,0.00034918,4]
[341165219,1730500242110,-500.0,0.00034918,4]
[341165220,1730500242121,-500.0,0.00034918,3]
[341165221,1730500242133,-1099.65,0.00034918,4]
[341165222,1730500242144,-500.0,0.00034918,4]
[341165223,1730500242155,-500.0,0.00034919,4]
[341165224,1730500242165,-329.91471267,0.00034919,4]
[341165225,1730500242176,-500.0,0.00034919,4]
[341165226,1730500242186,-500.0,0.00034919,4]
[341165227,1730500242197,-500.0,0.00034919,4]
[341165228,1730500242207,-550.64977214,0.00034919,4]
[341165229,1730500242216,-500.0,0.00034919,4]
[341165230,1730500242227,-500.0,0.00034919,4]
[341165231,1730500242237,-500.0,0.00034919,4]
[341165232,1730500242249,-162.235696,0.00034955,2]
[341165233,1730500242260,-226.976004,0.00034955,2]
[341165234,1730500242269,-155.9205799,0.00034999,7]
[341165235,1730500242280,-490.49372997,0.00034999,7]
[341165236,1730500242290,-490.0,0.00034999,7]
[341165237,1730500242299,-68733.5921653,0.00035,2]
[341165238,1730500242348,-500.0,0.00033274,4]
[341165239,1730500242358,-500.0,0.00033548,4]
[341165240,1730500242460,-513.82,0.00033822,4]
[341165241,1730500242470,-101756.81181153,0.00035,2]
[341165242,1730500242558,-921.38790984,0.00035,2]
[341165245,1730500243777,-500.0,0.00033275,4]
[341165246,1730500243786,-253.578,0.00033275,4]
[341165247,1730500243800,-246.422,0.00033275,4]
[341165248,1730500243811,-327.73513719,0.00033549,4]
[341165249,1730500243823,-150.01,0.0003445,2]
[341165250,1730500243832,-16616.94848864,0.00035,2]
[341165256,1730500246701,-692.85,0.00035,2]
[341165257,1730500246736,-858.33548246,0.00035,2]
[341165258,1730500265462,500.0,0.00030136,4]
[341165260,1730500290308,500.0,0.00030136,4]
[341165261,1730500308178,500.0,0.00030136,4]
[341165262,1730500333254,500.0,0.00030136,4]
[341165263,1730500494397,278.819284,0.00013973,2]
[341165265,1730500535313,1553.0,0.0002,2]
[341165268,1730500710984,1125.65662408,0.00033295,50]
[341165272,1730501130221,-278.819284,0.00020447,2]
[341165273,1730501130243,-278.819284,0.00026921,2]
[341165274,1730501130265,-175.83724378,0.00027096,2]
[341165275,1730501130286,-2916.7903505,0.00027096,2]
[341165276,1730501134102,-5714.81540438,0.00027096,2]
[341165277,1730501231253,-308.33187553,0.00027096,2]
[341165278,1730501349386,-557.56242977,0.00027096,2]
[341165279,1730501358190,-43518.12469632,0.00027096,2]
[341165280,1730501358212,-684.01633295,0.000299,2]
[341165281,1730501358236,-610.35654369,0.0003,2]
[341165282,1730501358258,-256.92291238,0.00030135,2]
[341165283,1730501358279,-220.40333439,0.00030135,2]
[341165284,1730501358304,-205.45178513,0.00030135,2]
[341165285,1730501358325,-500.0,0.00030136,4]
[341165286,1730501358347,-500.0,0.00030136,4]
[341165287,1730501358369,-500.0,0.00030136,4]
[341165288,1730501358391,-500.0,0.00030136,4]
[341165289,1730501358413,-500.0,0.00030136,4]
[341165290,1730501358434,-500.0,0.00030136,4]
[341165291,1730501358456,-500.0,0.00030136,4]
[341165292,1730501358477,-556.8862278,0.00030136,4]
[341165293,1730501358500,-500.0,0.00030136,4]
[341165294,1730501358520,-500.0,0.00030136,4]
[341165295,1730501358540,-249.88800079,0.00030136,4]
[341165296,1730501358561,-500.0,0.00030136,4]
[341165297,1730501358582,-478.24912638,0.00030136,4]
[341165298,1730501358602,-500.0,0.00030136,4]
[341165299,1730501358623,-500.0,0.00030136,4]
[341165300,1730501358645,-500.0,0.00030136,4]
[341165301,1730501358671,-500.0,0.00030136,4]
[341165302,1730501358692,-500.0,0.00030136,4]
[341165303,1730501358714,-500.0,0.00030136,4]
[341165304,1730501358735,-500.0,0.00030136,4]
[341165305,1730501358757,-517.19900121,0.00030136,4]
[341165306,1730501358779,-500.0,0.00030136,4]
[341165307,1730501358799,-500.0,0.00030136,4]
[341165308,1730501358820,-500.0,0.00030136,4]
[341165309,1730501358840,-500.0,0.00030136,4]
[341165310,1730501358861,-500.0,0.00030136,4]
[341165311,1730501358887,-500.0,0.00030136,4]
[341165312,1730501358908,-500.0,0.00030136,4]
[341165313,1730501358930,-560.17243243,0.00030136,4]
[341165314,1730501358950,-500.0,0.00030136,4]
[341165315,1730501358971,-500.0,0.00030136,4]
[341165316,1730501358992,-500.0,0.00030136,4]
[341165317,1730501359014,-500.0,0.00030136,4]
[341165318,1730501359035,-500.0,0.00030136,4]
[341165319,1730501359057,-500.0,0.00030136,4]
[341165320,1730501359079,-500.0,0.00030136,3]
[341165321,1730501359102,-849.51,0.00030136,4]
[341165322,1730501359124,-500.0,0.00030136,4]
[341165323,1730501359148,-500.0,0.00030136,4]
[341165324,1730501359169,-500.0,0.00030136,4]
[341165325,1730501359192,-466.27544332,0.00030136,4]
[341165326,1730501359212,-500.0,0.00030136,4]
[341165327,1730501359234,-500.0,0.00030136,4]
[341165328,1730501359258,-500.0,0.00030136,4]
[341165329,1730501359286,-500.0,0.00030136,4]
[341165330,1730501359310,-500.0,0.00030136,4]
[341165331,1730501359334,-500.0,0.00030136,4]
[341165332,1730501359356,-500.0,0.0003041,4]
[341165333,1730501359378,-500.0,0.0003041,4]
[341165334,1730501359504,-500.0,0.0003041,4]
[341165335,1730501359531,-500.0,0.0003041,4]
[341165336,1730501359553,-500.0,0.0003041,4]
[341165337,1730501359574,-500.0,0.0003041,4]
[341165338,1730501359594,-510.19,0.0003041,4]
[341165339,1730501359616,-500.0,0.0003041,3]
[341165340,1730501359637,-849.51,0.0003041,4]
[341165341,1730501359673,-500.0,0.0003041,4]
[341165342,1730501359697,-500.0,0.0003041,4]
[341165343,1730501359719,-500.0,0.0003041,4]
[341165344,1730501359746,-500.0,0.0003041,4]
[341165345,1730501359769,-283.05813001,0.0003041,4]
[341165346,1730501359794,-500.0,0.0003041,4]
[341165347,1730501359817,-500.0,0.0003041,4]
[341165348,1730501359839,-318.44,0.00030684,4]
[341165349,1730501359861,-500.0,0.00030684,4]
[341165350,1730501359884,-500.0,0.00030684,3]
[341165351,1730501359907,-849.51,0.00030684,4]
[341165352,1730501359929,-500.0,0.00030684,4]
[341165353,1730501359953,-500.0,0.00030684,4]
[341165354,1730501359975,-500.0,0.00030684,4]
[341165355,1730501359998,-500.0,0.00030684,4]
[341165356,1730501360022,-500.0,0.00030684,4]
[341165357,1730501360045,-500.0,0.00030684,4]
[341165358,1730501360070,-500.0,0.00030958,4]
[341165359,1730501360098,-500.0,0.00030958,3]
[341165360,1730501360124,-849.51,0.00030958,4]
[341165361,1730501360147,-500.0,0.00030958,4]
[341165362,1730501360173,-532.63992897,0.00030958,4]
[341165363,1730501360197,-500.0,0.00030958,4]
[341165364,1730501360221,-500.0,0.00030958,4]
[341165365,1730501360245,-500.0,0.00030958,4]
[341165366,1730501360271,-500.0,0.00030958,4]
[341165367,1730501360297,-500.0,0.00031099,4]
[341165368,1730501360321,-500.0,0.00031099,4]
[341165369,1730501360344,-500.0,0.00031099,4]
[341165370,1730501360374,-500.0,0.00031099,4]
[341165371,1730501360398,-500.0,0.00031099,4]
[341165372,1730501360423,-500.0,0.00031099,4]
[341165373,1730501360448,-500.0,0.00031099,4]
[341165374,1730501360475,-500.0,0.00031099,4]
[341165375,1730501360498,-500.0,0.00031099,4]
[341165376,1730501360520,-253.84071481,0.00031099,4]
[341165377,1730501360543,-500.0,0.00031099,4]
[341165378,1730501360565,-500.0,0.00031099,4]
[341165379,1730501360587,-500.0,0.00031099,4]
[341165380,1730501360609,-500.0,0.00031099,4]
[341165381,1730501360631,-264.64472181,0.00031099,4]
[341165382,1730501360653,-500.0,0.00031099,4]
[341165383,1730501360675,-500.0,0.00031099,4]
[341165384,1730501360697,-500.0,0.00031099,4]
[341165385,1730501360719,-624.75061339,0.00031099,4]
[341165386,1730501360740,-614.34805981,0.00031099,4]
[341165387,1730501360761,-500.0,0.00031099,4]
[341165388,1730501360782,-500.0,0.00031099,4]
[341165389,1730501360803,-500.0,0.00031099,4]
[341165390,1730501360824,-551.90998738,0.00031099,4]
[341165391,1730501360846,-500.0,0.00031099,4]
[341165392,1730501360866,-500.0,0.00031099,4]
[341165393,1730501360887,-500.0,0.00031099,4]
[341165394,1730501360911,-500.0,0.00031099,4]
[341165395,1730501360937,-500.0,0.00031099,4]
[341165396,1730501360960,-500.0,0.00031099,4]
[341165397,1730501360984,-500.0,0.00031099,4]
[341165398,1730501361006,-889.8022429,0.000311,2]
[341165399,1730501361028,-500.0,0.00031232,4]
[341165400,1730501361053,-500.0,0.00031232,3]
[341165401,1730501361081,-849.51,0.00031232,4]
[341165402,1730501361106,-500.0,0.00031232,4]
[341165403,1730501361129,-500.0,0.00031232,4]
[341165404,1730501361151,-500.0,0.00031232,4]
[341165405,1730501361175,-500.0,0.00031232,4]
[341165406,1730501361200,-500.0,0.00031232,4]
[341165407,1730501361222,-500.0,0.00031373,4]
[341165408,1730501361245,-500.0,0.00031373,4]
[341165409,1730501361266,-500.0,0.00031373,4]
[341165410,1730501361291,-500.0,0.00031373,4]
[341165411,1730501361315,-13.66715398,0.00031373,4]
[341165412,1730501362190,-418.40560298,0.00031373,4]
[341165413,1730501362212,-415.80642851,0.00031373,4]
[341165414,1730501362233,-684.01633293,0.00031477,2]
[341165415,1730501372273,672.53,0.00030136,4]
[341165416,1730501372667,672.53,0.0003041,4]
[341165417,1730501372926,537.62929735,0.00030684,4]
[341165418,1730501372951,134.90070265,0.00030684,4]
[341165419,1730501373230,672.53,0.00030958,4]
[341165420,1730501373500,672.53,0.00031232,4]
[341165421,1730501383577,500.0,0.00030136,4]
[341165422,1730501383853,500.0,0.0003041,4]
[341165423,1730501384467,500.0,0.00030684,4]
[341165424,1730501427275,377.28348778,0.00030136,4]
[341165425,1730501427299,122.71651222,0.00030136,4]
[341165426,1730501427546,500.0,0.0003041,4]
[341165427,1730501427860,500.0,0.00030684,4]
[341165428,1730501428129,500.0,0.00030958,4]
[341165462,1730501432209,-500.0,0.00031232,4]
[341165463,1730501432219,-500.0,0.00031506,4]
[341165464,1730501432228,-343.92,0.00031506,4]
[341165465,1730501432237,-52.46,0.00031506,4]
[341165466,1730501432250,-447.54,0.00031506,4]
[341165467,1730501432259,-500.0,0.00031506,4]
[341165468,1730501432268,-53.88549695,0.00031506,4]
[341165469,1730501432280,-446.11450305,0.00031506,4]
[341165470,1730501432292,-672.53,0.00031506,4]
[341165471,1730501432303,-500.0,0.00031506,4]
[341165472,1730501432312,-500.0,0.00031647,4]